{"text_format":"1","workbook":"xlsx","n_sheets":1,"sheets":["APPROVED FP26 Div Splits"],"not_rendered":{"charts":0,"images":0,"macros":1,"external_links":0,"defined_names":45,"comments":0,"pivot_tables":0},"unopened":[],"bounds":{"document_bytes":16777216,"sheet_cells":100000,"rows_first":2000,"rows_last":500,"rows_between":2000,"halvings":0,"cell_chars":16384,"cell_head_chars":4096},"cells_cut":0,"cells_raw":0,"read":"whole","date_system":"1900"}

{"sheet":"APPROVED FP26 Div Splits","index":0,"n_rows":98,"n_cols":92,"rows_kept":98,"cut":false,"hidden":false,"merged":[]}
["Div","Team Name","TIMES","Web or Dec","Format","Breakout Time","Round Robins","Number of Heats","Races per Team","Races per Div",null,"Time AX Div","Between Teams","Between Divs",null,null,null,null,null,null,null,null,null,{"$f":"IF(#REF!=\"\",\"\",BV2)","v":{"$error":"#REF!"}},{"$f":"IF(#REF!=\"\",\"\",#REF!)","v":{"$error":"#REF!"}},null,{"$error":"#N/A"},null,null,null,null,{"$error":"#REF!"}]
["Div 1","Norwest Thunderdogs 1",16.102,"Web",null,15.602,null,null,null,null,null,null,null,null,null,null,null,null,null,null,null,null,null,{"$f":"IF(#REF!=\"\",\"\",BV3)","v":{"$error":"#REF!"}},{"$f":"IF(#REF!=\"\",\"\",#REF!)","v":{"$error":"#REF!"}},null,null,null,null,null,null,{"$error":"#REF!"},null,null,null,null,null,null,null,null,null,null,null,null,null,null,null,null,null,null,null,null,null,null,null,null,null,null,null,null,null,null,null,null,null,null,null,null,null,null,null,null,null,"Team 1",null,null,null,null,null,null,null,null,null,null,null,null,null,null,"Beach Crew",null,"Beach Crew"]
["Div 1","Norwest Thunderdogs 2",16.899999999999999,"Dec","Handicap",16.399999999999999,3,"Best of 5",6,9,null,2.3999999999999986,0.79799999999999827,null,null,null,null,null,null,null,null,null,null,{"$f":"IF(#REF!=\"\",\"\",BV4)","v":{"$error":"#REF!"}},{"$f":"IF(#REF!=\"\",\"\",#REF!)","v":{"$error":"#REF!"}},null,null,null,null,null,null,{"$error":"#REF!"},null,null,null,null,null,null,null,null,null,null,null,null,null,null,null,null,null,null,null,null,null,null,null,null,null,null,null,null,null,null,null,null,null,null,null,null,null,null,null,null,null,"Team 2",null,null,null,null,null,null,null,null,null,null,null,null,null,null,null,6,"T-Keilor Sunrises","Left"]
["Div 1","Tsunami Wave Riders",18.501999999999999,"Web",null,18.001999999999999,null,null,null,null,null,null,1.6020000000000003,null,null,null,null,null,null,null,null,null,null,{"$f":"IF(#REF!=\"\",\"\",BV5)","v":{"$error":"#REF!"}},{"$f":"IF(#REF!=\"\",\"\",#REF!)","v":{"$error":"#REF!"}},null,null,null,null,null,null,{"$error":"#REF!"},null,null,null,null,null,null,null,null,null,null,null,null,null,null,null,null,null,null,null,null,null,null,null,null,null,null,null,null,null,null,null,null,null,null,null,null,null,null,null,null,null,"Team 3"]
["Div 2","City Slickers",21.2,"Dec",null,20.7,null,null,null,null,null,null,2.6980000000000004,2.6980000000000004,null,null,null,null,null,null,null,null,null,{"$f":"IF(#REF!=\"\",\"\",BV6)","v":{"$error":"#REF!"}},{"$f":"IF(#REF!=\"\",\"\",#REF!)","v":{"$error":"#REF!"}},null,null,null,null,null,null,{"$error":"#REF!"},null,null,null,null,null,null,null,null,null,null,null,null,null,null,null,null,null,null,null,null,null,null,null,null,null,null,null,null,null,null,null,null,null,null,null,null,null,null,null,null,null,"Team 4"]
["Div 2","Rocky Hill Racers",21.5,"Dec","Regular",21,3,"Best of 5",6,9,null,0.66600000000000037,0.30000000000000071,null,null,null,null,null,null,null,null,null,null,{"$f":"IF(#REF!=\"\",\"\",BV7)","v":{"$error":"#REF!"}},{"$f":"IF(#REF!=\"\",\"\",#REF!)","v":{"$error":"#REF!"}},null,null,null,null,null,null,{"$error":"#REF!"},null,null,null,null,null,null,null,null,null,null,null,null,null,null,null,null,null,null,null,null,null,null,null,null,null,null,null,null,null,null,null,null,null,null,null,null,null,null,null,null,null,"Team 5"]
["Div 2","Wrascally Woofers",21.866,"Web",null,20.7,null,null,null,null,null,null,0.36599999999999966,null,null,null,null,null,null,null,null,null,null,{"$f":"IF(#REF!=\"\",\"\",BV8)","v":{"$error":"#REF!"}},{"$f":"IF(#REF!=\"\",\"\",#REF!)","v":{"$error":"#REF!"}},null,null,null,null,null,null,{"$error":"#REF!"},null,null,null,null,null,null,null,null,null,null,null,null,null,null,null,null,null,null,null,null,null,null,null,null,null,null,null,null,null,null,null,null,null,null,null,null,null,null,null,null,null,"Team 6"]
["Div 3","Tsunami Chop Hoppers",22.469000000000001,"Dec",null,21.969000000000001,null,null,null,null,null,null,0.60300000000000153,0.60300000000000153,null,null,null,null,null,null,null,null,null,{"$f":"IF(#REF!=\"\",\"\",BV9)","v":{"$error":"#REF!"}},{"$f":"IF(#REF!=\"\",\"\",#REF!)","v":{"$error":"#REF!"}},null,null,null,null,null,null,{"$error":"#REF!"},null,null,null,null,null,null,null,null,null,null,null,null,null,null,null,null,null,null,null,null,null,null,null,null,null,null,null,null,null,null,null,null,null,null,null,null,null,null,null,null,null,"Team 7"]
["Div 3","Tuggeranong Screaming Torpedoes",22.96,"Web","Regular",21.969000000000001,3,"Best of 5",6,9,null,0.53099999999999881,0.49099999999999966,null,null,null,null,null,null,null,null,null,null,{"$f":"IF(#REF!=\"\",\"\",#REF!)","v":{"$error":"#REF!"}},{"$f":"IF(#REF!=\"\",\"\",#REF!)","v":{"$error":"#REF!"}},null,null,null,null,null,null,{"$error":"#REF!"},null,null,null,null,null,null,null,null,null,null,null,null,null,null,null,null,null,null,null,null,null,null,null,null,null,null,null,null,null,null,null,null,null,null,null,null,null,null,null,null,null,"Team 8"]
["Div 3","Norwest Thunderdogs 8",23,"Dec",null,22.5,null,null,null,null,null,null,3.9999999999999147E-2,null,null,null,null,null,null,null,null,null,null,{"$f":"IF(#REF!=\"\",\"\",BV11)","v":{"$error":"#REF!"}},{"$f":"IF(#REF!=\"\",\"\",#REF!)","v":{"$error":"#REF!"}},null,null,null,null,null,null,{"$error":"#REF!"},null,null,null,null,null,null,null,null,null,null,null,null,null,null,null,null,null,null,null,null,null,null,null,null,null,null,null,null,null,null,null,null,null,null,null,null,null,null,null,null,null,"Team 10"]
["Div 4","Zephyrs",23.878,"Web",null,23.378,null,null,null,null,null,null,0.87800000000000011,0.87800000000000011,null,null,null,null,null,null,null,null,null,{"$f":"IF(#REF!=\"\",\"\",BV12)","v":{"$error":"#REF!"}},{"$f":"IF(#REF!=\"\",\"\",#REF!)","v":{"$error":"#REF!"}},null,null,null,null,null,null,{"$error":"#REF!"},null,null,null,null,null,null,null,null,null,null,null,null,null,null,null,null,null,null,null,null,null,null,null,null,null,null,null,null,null,null,null,null,null,null,null,null,null,null,null,null,null,"Team 11"]
["Div 4","Star Trackers",24.4,"Dec","Handicap",23.9,2,"Best of 5",6,12,null,6.6230000000000011,0.52199999999999847,null,null,null,null,null,null,null,null,null,null,{"$f":"IF(#REF!=\"\",\"\",BV13)","v":{"$error":"#REF!"}},{"$f":"IF(#REF!=\"\",\"\",#REF!)","v":{"$error":"#REF!"}},null,null,null,null,null,null,{"$error":"#REF!"},null,null,null,null,null,null,null,null,null,null,null,null,null,null,null,null,null,null,null,null,null,null,null,null,null,null,null,null,null,null,null,null,null,null,null,null,null,null,null,null,null,"Team 12"]
["Div 4","Munchkins",30.1,"Dec",null,29.6,null,null,null,null,null,null,5.7000000000000028,null,null,null,null,null,null,null,null,null,null,{"$f":"IF(#REF!=\"\",\"\",BV14)","v":{"$error":"#REF!"}},{"$f":"IF(#REF!=\"\",\"\",#REF!)","v":{"$error":"#REF!"}},null,null,null,null,null,null,{"$error":"#REF!"},null,null,null,null,null,null,null,null,null,null,null,null,null,null,null,null,null,null,null,null,null,null,null,null,null,null,null,null,null,null,null,null,null,null,null,null,null,null,null,null,null,"Team 13"]
["Div 4","Widdle Woofers",30.501000000000001,"Web",null,30.001000000000001,null,null,null,null,null,null,0.4009999999999998,null,null,null,null,null,null,null,null,null,null,{"$f":"IF(#REF!=\"\",\"\",#REF!)","v":{"$error":"#REF!"}},{"$f":"IF(#REF!=\"\",\"\",#REF!)","v":{"$error":"#REF!"}},null,null,null,null,null,null,{"$error":"#REF!"},null,null,null,null,null,null,null,null,null,null,null,null,null,null,null,null,null,null,null,null,null,null,null,null,null,null,null,null,null,null,null,null,null,null,null,null,null,null,null,null,null,"Team 14"]
["Open 1","Thunderdog Stormchasers",17.7,"Dec",null,17.2,null,null,null,null,null,null,null,null,null,null,null,null,null,null,null,null,null,{"$f":"IF(#REF!=\"\",\"\",BV16)","v":{"$error":"#REF!"}},{"$f":"IF(#REF!=\"\",\"\",#REF!)","v":{"$error":"#REF!"}},null,null,null,null,null,null,{"$error":"#REF!"},null,null,null,null,null,null,null,null,null,null,null,null,null,null,null,null,null,null,null,null,null,null,null,null,null,null,null,null,null,null,null,null,null,null,null,null,null,null,null,null,null,"Team 18"]
["Open 1","Thunderdog Tornado",19.3,"Dec","Handicap",18.8,2,"Best of 5",6,12,null,2.6999999999999993,1.6000000000000014,null,null,null,null,null,null,null,null,null,null,{"$f":"IF(#REF!=\"\",\"\",BV17)","v":{"$error":"#REF!"}},{"$f":"IF(#REF!=\"\",\"\",#REF!)","v":{"$error":"#REF!"}},null,null,null,null,null,null,{"$error":"#REF!"},null,null,null,null,null,null,null,null,null,null,null,null,null,null,null,null,null,null,null,null,null,null,null,null,null,null,null,null,null,null,null,null,null,null,null,null,null,null,null,null,null,"Team 19"]
["Open 1","Zoomies",20.2,"Dec",null,19.7,null,null,null,null,null,null,0.89999999999999858,null,null,null,null,null,null,null,null,null,null,{"$f":"IF(#REF!=\"\",\"\",BV18)","v":{"$error":"#REF!"}},{"$f":"IF(#REF!=\"\",\"\",#REF!)","v":{"$error":"#REF!"}},null,null,null,null,null,null,{"$error":"#REF!"},null,null,null,null,null,null,null,null,null,null,null,null,null,null,null,null,null,null,null,null,null,null,null,null,null,null,null,null,null,null,null,null,null,null,null,null,null,null,null,null,null,"Team 20"]
["Open 1","Star Power - SthX",20.399999999999999,"Dec",null,19.899999999999999,null,null,null,null,null,null,0.19999999999999929,null,null,null,null,null,null,null,null,null,null,{"$f":"IF(#REF!=\"\",\"\",BV19)","v":{"$error":"#REF!"}},{"$f":"IF(#REF!=\"\",\"\",#REF!)","v":{"$error":"#REF!"}},null,null,null,null,null,null,{"$error":"#REF!"},null,null,null,null,null,null,null,null,null,null,null,null,null,null,null,null,null,null,null,null,null,null,null,null,null,null,null,null,null,null,null,null,null,null,null,null,null,null,null,null,null,"Team 21"]
["Open 2","Belconnen Random Bullets",22.6,"Dec",null,22.1,null,null,null,null,null,null,2.2000000000000028,2.2000000000000028,null,null,null,null,null,null,null,null,null,{"$f":"IF(#REF!=\"\",\"\",BV20)","v":{"$error":"#REF!"}},{"$f":"IF(#REF!=\"\",\"\",#REF!)","v":{"$error":"#REF!"}},null,null,null,null,null,null,{"$error":"#REF!"},null,null,null,null,null,null,null,null,null,null,null,null,null,null,null,null,null,null,null,null,null,null,null,null,null,null,null,null,null,null,null,null,null,null,null,null,null,null,null,null,null,"Team 22"]
["Open 2","Open Ocean",23.3,"Dec","Handicap",22.8,3,"Best of 5",6,9,null,3.0999999999999979,0.69999999999999929,null,null,null,null,null,null,null,null,null,null,{"$f":"IF(#REF!=\"\",\"\",BV21)","v":{"$error":"#REF!"}},{"$f":"IF(#REF!=\"\",\"\",#REF!)","v":{"$error":"#REF!"}},null,null,null,null,null,null,{"$error":"#REF!"},null,null,null,null,null,null,null,null,null,null,null,null,null,null,null,null,null,null,null,null,null,null,null,null,null,null,null,null,null,null,null,null,null,null,null,null,null,null,null,null,null,"Team 23"]
["Open 2","MAD Flyers",25.7,"Dec",null,25.2,null,null,null,null,null,null,2.3999999999999986,null,null,null,null,null,null,null,null,null,null,{"$f":"IF(#REF!=\"\",\"\",BV22)","v":{"$error":"#REF!"}},{"$f":"IF(#REF!=\"\",\"\",#REF!)","v":{"$error":"#REF!"}},null,null,null,null,null,null,{"$error":"#REF!"},null,null,null,null,null,null,null,null,null,null,null,null,null,null,null,null,null,null,null,null,null,null,null,null,null,null,null,null,null,null,null,null,null,null,null,null,null,null,null,null,null,"Team 24"]
[null,null,null,null,null,null,null,null,null,"Total 60 Races",null,null,null,null,null,null,null,null,null,null,null,null,null,{"$f":"IF(#REF!=\"\",\"\",BV23)","v":{"$error":"#REF!"}},{"$f":"IF(#REF!=\"\",\"\",#REF!)","v":{"$error":"#REF!"}},null,null,null,null,null,null,{"$error":"#REF!"},null,null,null,null,null,null,null,null,null,null,null,null,null,null,null,null,null,null,null,null,null,null,null,null,null,null,null,null,null,null,null,null,null,null,null,null,null,null,null,null,null,"Team 25"]
[null,null,null,null,null,null,null,null,null,null,null,null,null,null,null,null,null,null,null,null,null,null,null,{"$f":"IF(#REF!=\"\",\"\",BV24)","v":{"$error":"#REF!"}},{"$f":"IF(#REF!=\"\",\"\",#REF!)","v":{"$error":"#REF!"}},null,null,null,null,null,null,{"$error":"#REF!"},null,null,null,null,null,null,null,null,null,null,null,null,null,null,null,null,null,null,null,null,null,null,null,null,null,null,null,null,null,null,null,null,null,null,null,null,null,null,null,null,null,"Team 26"]
[null,null,null,null,null,null,null,null,null,null,null,null,null,null,null,null,null,null,null,null,null,null,null,{"$f":"IF(#REF!=\"\",\"\",BV25)","v":{"$error":"#REF!"}},{"$f":"IF(#REF!=\"\",\"\",#REF!)","v":{"$error":"#REF!"}},null,null,null,null,null,null,{"$error":"#REF!"},null,null,null,null,null,null,null,null,null,null,null,null,null,null,null,null,null,null,null,null,null,null,null,null,null,null,null,null,null,null,null,null,null,null,null,null,null,null,null,null,null,"Team 27"]
[null,null,null,null,null,null,null,null,null,null,null,null,null,null,null,null,null,null,null,null,null,null,null,{"$f":"IF(#REF!=\"\",\"\",BV26)","v":{"$error":"#REF!"}},{"$f":"IF(#REF!=\"\",\"\",#REF!)","v":{"$error":"#REF!"}},null,null,null,null,null,null,{"$error":"#REF!"},null,null,null,null,null,null,null,null,null,null,null,null,null,null,null,null,null,null,null,null,null,null,null,null,null,null,null,null,null,null,null,null,null,null,null,null,null,null,null,null,null,"Team 28"]
[null,null,null,null,null,null,null,null,null,null,null,null,null,null,null,null,null,null,null,null,null,null,null,{"$f":"IF(#REF!=\"\",\"\",BV27)","v":{"$error":"#REF!"}},{"$f":"IF(#REF!=\"\",\"\",#REF!)","v":{"$error":"#REF!"}},null,null,null,null,null,null,{"$error":"#REF!"},null,null,null,null,null,null,null,null,null,null,null,null,null,null,null,null,null,null,null,null,null,null,null,null,null,null,null,null,null,null,null,null,null,null,null,null,null,null,null,null,null,"Team 29"]
[null,null,null,null,null,null,null,null,null,null,null,null,null,null,null,null,null,null,null,null,null,null,null,{"$f":"IF(#REF!=\"\",\"\",BV28)","v":{"$error":"#REF!"}},{"$f":"IF(#REF!=\"\",\"\",#REF!)","v":{"$error":"#REF!"}},null,null,null,null,null,null,{"$error":"#REF!"},null,null,null,null,null,null,null,null,null,null,null,null,null,null,null,null,null,null,null,null,null,null,null,null,null,null,null,null,null,null,null,null,null,null,null,null,null,null,null,null,null,"Team 30"]
[null,null,null,null,null,null,null,null,null,null,null,null,null,null,null,null,null,null,null,null,null,null,null,{"$f":"IF(#REF!=\"\",\"\",BV29)","v":{"$error":"#REF!"}},{"$f":"IF(#REF!=\"\",\"\",#REF!)","v":{"$error":"#REF!"}},null,null,null,null,null,null,{"$error":"#REF!"},null,null,null,null,null,null,null,null,null,null,null,null,null,null,null,null,null,null,null,null,null,null,null,null,null,null,null,null,null,null,null,null,null,null,null,null,null,null,null,null,null,"Team 31"]
[null,null,null,null,null,null,null,null,null,null,null,null,null,null,null,null,null,null,null,null,null,null,null,{"$f":"IF(#REF!=\"\",\"\",BV30)","v":{"$error":"#REF!"}},{"$f":"IF(#REF!=\"\",\"\",#REF!)","v":{"$error":"#REF!"}},null,null,null,null,null,null,{"$error":"#REF!"},null,null,null,null,null,null,null,null,null,null,null,null,null,null,null,null,null,null,null,null,null,null,null,null,null,null,null,null,null,null,null,null,null,null,null,null,null,null,null,null,null,"Team 32"]
[null,null,null,null,null,null,null,null,null,null,null,null,null,null,null,null,null,null,null,null,null,null,null,{"$f":"IF(#REF!=\"\",\"\",BV31)","v":{"$error":"#REF!"}},{"$f":"IF(#REF!=\"\",\"\",#REF!)","v":{"$error":"#REF!"}},null,null,null,null,null,null,{"$error":"#REF!"},null,null,null,null,null,null,null,null,null,null,null,null,null,null,null,null,null,null,null,null,null,null,null,null,null,null,null,null,null,null,null,null,null,null,null,null,null,null,null,null,null,"Team 33"]
[null,null,null,null,null,null,null,null,null,null,null,null,null,null,null,null,null,null,null,null,null,null,null,{"$f":"IF(#REF!=\"\",\"\",BV32)","v":{"$error":"#REF!"}},{"$f":"IF(#REF!=\"\",\"\",#REF!)","v":{"$error":"#REF!"}},null,null,null,null,null,null,{"$error":"#REF!"},null,null,null,null,null,null,null,null,null,null,null,null,null,null,null,null,null,null,null,null,null,null,null,null,null,null,null,null,null,null,null,null,null,null,null,null,null,null,null,null,null,"Team 34"]
[null,null,null,null,null,null,null,null,null,null,null,null,null,null,null,null,null,null,null,null,null,null,null,{"$f":"IF(#REF!=\"\",\"\",BV33)","v":{"$error":"#REF!"}},{"$f":"IF(#REF!=\"\",\"\",#REF!)","v":{"$error":"#REF!"}},null,null,null,null,null,null,{"$error":"#REF!"},null,null,null,null,null,null,null,null,null,null,null,null,null,null,null,null,null,null,null,null,null,null,null,null,null,null,null,null,null,null,null,null,null,null,null,null,null,null,null,null,null,"Team 35"]
[null,null,null,null,null,null,null,null,null,null,null,null,null,null,null,null,null,null,null,null,null,null,null,{"$f":"IF(#REF!=\"\",\"\",BV34)","v":{"$error":"#REF!"}},{"$f":"IF(#REF!=\"\",\"\",#REF!)","v":{"$error":"#REF!"}},null,null,null,null,null,null,{"$error":"#REF!"},null,null,null,null,null,null,null,null,null,null,null,null,null,null,null,null,null,null,null,null,null,null,null,null,null,null,null,null,null,null,null,null,null,null,null,null,null,null,null,null,null,"Team 36"]
[null,null,null,null,null,null,null,null,null,null,null,null,null,null,null,null,null,null,null,null,null,null,null,{"$f":"IF(#REF!=\"\",\"\",BV35)","v":{"$error":"#REF!"}},{"$f":"IF(#REF!=\"\",\"\",#REF!)","v":{"$error":"#REF!"}},null,null,null,null,null,null,{"$error":"#REF!"},null,null,null,null,null,null,null,null,null,null,null,null,null,null,null,null,null,null,null,null,null,null,null,null,null,null,null,null,null,null,null,null,null,null,null,null,null,null,null,null,null,"Team 37"]
[null,null,null,null,null,null,null,null,null,null,null,null,null,null,null,null,null,null,null,null,null,null,null,{"$f":"IF(#REF!=\"\",\"\",BV36)","v":{"$error":"#REF!"}},{"$f":"IF(#REF!=\"\",\"\",#REF!)","v":{"$error":"#REF!"}},null,null,null,null,null,null,{"$error":"#REF!"},null,null,null,null,null,null,null,null,null,null,null,null,null,null,null,null,null,null,null,null,null,null,null,null,null,null,null,null,null,null,null,null,null,null,null,null,null,null,null,null,null,"Team 38"]
[null,null,null,null,null,null,null,null,null,null,null,null,null,null,null,null,null,null,null,null,null,null,null,{"$f":"IF(#REF!=\"\",\"\",BV37)","v":{"$error":"#REF!"}},{"$f":"IF(#REF!=\"\",\"\",#REF!)","v":{"$error":"#REF!"}},null,null,null,null,null,null,{"$error":"#REF!"},null,null,null,null,null,null,null,null,null,null,null,null,null,null,null,null,null,null,null,null,null,null,null,null,null,null,null,null,null,null,null,null,null,null,null,null,null,null,null,null,null,"Team 39"]
[null,null,null,null,null,null,null,null,null,null,null,null,null,null,null,null,null,null,null,null,null,null,null,{"$f":"IF(#REF!=\"\",\"\",BV38)","v":{"$error":"#REF!"}},{"$f":"IF(#REF!=\"\",\"\",#REF!)","v":{"$error":"#REF!"}},null,null,null,null,null,null,{"$error":"#REF!"},null,null,null,null,null,null,null,null,null,null,null,null,null,null,null,null,null,null,null,null,null,null,null,null,null,null,null,null,null,null,null,null,null,null,null,null,null,null,null,null,null,"Team 40"]
[null,null,null,null,null,null,null,null,null,null,null,null,null,null,null,null,null,null,null,null,null,null,null,{"$f":"IF(#REF!=\"\",\"\",BV39)","v":{"$error":"#REF!"}},{"$f":"IF(#REF!=\"\",\"\",#REF!)","v":{"$error":"#REF!"}},null,null,null,null,null,null,{"$error":"#REF!"},null,null,null,null,null,null,null,null,null,null,null,null,null,null,null,null,null,null,null,null,null,null,null,null,null,null,null,null,null,null,null,null,null,null,null,null,null,null,null,null,null,"Team 41"]
[null,null,null,null,null,null,null,null,null,null,null,null,null,null,null,null,null,null,null,null,null,null,null,{"$f":"IF(#REF!=\"\",\"\",BV40)","v":{"$error":"#REF!"}},{"$f":"IF(#REF!=\"\",\"\",#REF!)","v":{"$error":"#REF!"}},null,null,null,null,null,null,{"$error":"#REF!"},null,null,null,null,null,null,null,null,null,null,null,null,null,null,null,null,null,null,null,null,null,null,null,null,null,null,null,null,null,null,null,null,null,null,null,null,null,null,null,null,null,"Team 42"]
[null,null,null,null,null,null,null,null,null,null,null,null,null,null,null,null,null,null,null,null,null,null,null,{"$f":"IF(#REF!=\"\",\"\",BV41)","v":{"$error":"#REF!"}},{"$f":"IF(#REF!=\"\",\"\",#REF!)","v":{"$error":"#REF!"}},null,null,null,null,null,null,{"$error":"#REF!"},null,null,null,null,null,null,null,null,null,null,null,null,null,null,null,null,null,null,null,null,null,null,null,null,null,null,null,null,null,null,null,null,null,null,null,null,null,null,null,null,null,"Team 43"]
[null,null,null,null,null,null,null,null,null,null,null,null,null,null,null,null,null,null,null,null,null,null,null,{"$f":"IF(#REF!=\"\",\"\",BV42)","v":{"$error":"#REF!"}},{"$f":"IF(#REF!=\"\",\"\",#REF!)","v":{"$error":"#REF!"}},null,null,null,null,null,null,{"$error":"#REF!"},null,null,null,null,null,null,null,null,null,null,null,null,null,null,null,null,null,null,null,null,null,null,null,null,null,null,null,null,null,null,null,null,null,null,null,null,null,null,null,null,null,"Team 44"]
[null,null,null,null,null,null,null,null,null,null,null,null,null,null,null,null,null,null,null,null,null,null,null,{"$f":"IF(#REF!=\"\",\"\",BV43)","v":{"$error":"#REF!"}},{"$f":"IF(#REF!=\"\",\"\",#REF!)","v":{"$error":"#REF!"}},null,null,null,null,null,null,{"$error":"#REF!"},null,null,null,null,null,null,null,null,null,null,null,null,null,null,null,null,null,null,null,null,null,null,null,null,null,null,null,null,null,null,null,null,null,null,null,null,null,null,null,null,null,"Team 45"]
[null,null,null,null,null,null,null,null,null,null,null,null,null,null,null,null,null,null,null,null,null,null,null,{"$f":"IF(#REF!=\"\",\"\",BV44)","v":{"$error":"#REF!"}},{"$f":"IF(#REF!=\"\",\"\",#REF!)","v":{"$error":"#REF!"}},null,null,null,null,null,null,{"$error":"#REF!"},null,null,null,null,null,null,null,null,null,null,null,null,null,null,null,null,null,null,null,null,null,null,null,null,null,null,null,null,null,null,null,null,null,null,null,null,null,null,null,null,null,"Team 46"]
[null,null,null,null,null,null,null,null,null,null,null,null,null,null,null,null,null,null,null,null,null,null,null,{"$f":"IF(#REF!=\"\",\"\",BV45)","v":{"$error":"#REF!"}},{"$f":"IF(#REF!=\"\",\"\",#REF!)","v":{"$error":"#REF!"}},null,null,null,null,null,null,{"$error":"#REF!"},null,null,null,null,null,null,null,null,null,null,null,null,null,null,null,null,null,null,null,null,null,null,null,null,null,null,null,null,null,null,null,null,null,null,null,null,null,null,null,null,null,"Team 47"]
[null,null,null,null,null,null,null,null,null,null,null,null,null,null,null,null,null,null,null,null,null,null,null,{"$f":"IF(#REF!=\"\",\"\",BV46)","v":{"$error":"#REF!"}},{"$f":"IF(#REF!=\"\",\"\",#REF!)","v":{"$error":"#REF!"}},null,null,null,null,null,null,{"$error":"#REF!"},null,null,null,null,null,null,null,null,null,null,null,null,null,null,null,null,null,null,null,null,null,null,null,null,null,null,null,null,null,null,null,null,null,null,null,null,null,null,null,null,null,"Team 48"]
[null,null,null,null,null,null,null,null,null,null,null,null,null,null,null,null,null,null,null,null,null,null,null,{"$f":"IF(#REF!=\"\",\"\",BV47)","v":{"$error":"#REF!"}},{"$f":"IF(#REF!=\"\",\"\",#REF!)","v":{"$error":"#REF!"}},null,null,null,null,null,null,{"$error":"#REF!"},null,null,null,null,null,null,null,null,null,null,null,null,null,null,null,null,null,null,null,null,null,null,null,null,null,null,null,null,null,null,null,null,null,null,null,null,null,null,null,null,null,"Team 49"]
[null,null,null,null,null,null,null,null,null,null,null,null,null,null,null,null,null,null,null,null,null,null,null,{"$f":"IF(#REF!=\"\",\"\",BV48)","v":{"$error":"#REF!"}},{"$f":"IF(#REF!=\"\",\"\",#REF!)","v":{"$error":"#REF!"}},null,null,null,null,null,null,{"$error":"#REF!"},null,null,null,null,null,null,null,null,null,null,null,null,null,null,null,null,null,null,null,null,null,null,null,null,null,null,null,null,null,null,null,null,null,null,null,null,null,null,null,null,null,"Team 50"]
[null,null,null,null,null,null,null,null,null,null,null,null,null,null,null,null,null,null,null,null,null,null,null,{"$f":"IF(#REF!=\"\",\"\",BV49)","v":{"$error":"#REF!"}},{"$f":"IF(#REF!=\"\",\"\",#REF!)","v":{"$error":"#REF!"}},null,null,null,null,null,null,{"$error":"#REF!"},null,null,null,null,null,null,null,null,null,null,null,null,null,null,null,null,null,null,null,null,null,null,null,null,null,null,null,null,null,null,null,null,null,null,null,null,null,null,null,null,null,"Team 51"]
[null,null,null,null,null,null,null,null,null,null,null,null,null,null,null,null,null,null,null,null,null,null,null,{"$f":"IF(#REF!=\"\",\"\",BV50)","v":{"$error":"#REF!"}},{"$f":"IF(#REF!=\"\",\"\",#REF!)","v":{"$error":"#REF!"}},null,null,null,null,null,null,{"$error":"#REF!"},null,null,null,null,null,null,null,null,null,null,null,null,null,null,null,null,null,null,null,null,null,null,null,null,null,null,null,null,null,null,null,null,null,null,null,null,null,null,null,null,null,"Team 52"]
[null,null,null,null,null,null,null,null,null,null,null,null,null,null,null,null,null,null,null,null,null,null,null,{"$f":"IF(#REF!=\"\",\"\",BV51)","v":{"$error":"#REF!"}},{"$f":"IF(#REF!=\"\",\"\",#REF!)","v":{"$error":"#REF!"}},null,null,null,null,null,null,{"$error":"#REF!"},null,null,null,null,null,null,null,null,null,null,null,null,null,null,null,null,null,null,null,null,null,null,null,null,null,null,null,null,null,null,null,null,null,null,null,null,null,null,null,null,null,"Team 53"]
[null,null,null,null,null,null,null,null,null,null,null,null,null,null,null,null,null,null,null,null,null,null,null,{"$f":"IF(#REF!=\"\",\"\",BV52)","v":{"$error":"#REF!"}},{"$f":"IF(#REF!=\"\",\"\",#REF!)","v":{"$error":"#REF!"}},null,null,null,null,null,null,{"$error":"#REF!"},null,null,null,null,null,null,null,null,null,null,null,null,null,null,null,null,null,null,null,null,null,null,null,null,null,null,null,null,null,null,null,null,null,null,null,null,null,null,null,null,null,"Team 54"]
[null,null,null,null,null,null,null,null,null,null,null,null,null,null,null,null,null,null,null,null,null,null,null,{"$f":"IF(#REF!=\"\",\"\",BV53)","v":{"$error":"#REF!"}},{"$f":"IF(#REF!=\"\",\"\",#REF!)","v":{"$error":"#REF!"}},null,null,null,null,null,null,{"$error":"#REF!"},null,null,null,null,null,null,null,null,null,null,null,null,null,null,null,null,null,null,null,null,null,null,null,null,null,null,null,null,null,null,null,null,null,null,null,null,null,null,null,null,null,"Team 55"]
[null,null,null,null,null,null,null,null,null,null,null,null,null,null,null,null,null,null,null,null,null,null,null,{"$f":"IF(#REF!=\"\",\"\",BV54)","v":{"$error":"#REF!"}},{"$f":"IF(#REF!=\"\",\"\",#REF!)","v":{"$error":"#REF!"}},null,null,null,null,null,null,{"$error":"#REF!"},null,null,null,null,null,null,null,null,null,null,null,null,null,null,null,null,null,null,null,null,null,null,null,null,null,null,null,null,null,null,null,null,null,null,null,null,null,null,null,null,null,"Team 56"]
[null,null,null,null,null,null,null,null,null,null,null,null,null,null,null,null,null,null,null,null,null,null,null,{"$f":"IF(#REF!=\"\",\"\",BV55)","v":{"$error":"#REF!"}},{"$f":"IF(#REF!=\"\",\"\",#REF!)","v":{"$error":"#REF!"}},null,null,null,null,null,null,{"$error":"#REF!"},null,null,null,null,null,null,null,null,null,null,null,null,null,null,null,null,null,null,null,null,null,null,null,null,null,null,null,null,null,null,null,null,null,null,null,null,null,null,null,null,null,"Team 57"]
[null,null,null,null,null,null,null,null,null,null,null,null,null,null,null,null,null,null,null,null,null,null,null,{"$f":"IF(#REF!=\"\",\"\",BV56)","v":{"$error":"#REF!"}},{"$f":"IF(#REF!=\"\",\"\",#REF!)","v":{"$error":"#REF!"}},null,null,null,null,null,null,{"$error":"#REF!"},null,null,null,null,null,null,null,null,null,null,null,null,null,null,null,null,null,null,null,null,null,null,null,null,null,null,null,null,null,null,null,null,null,null,null,null,null,null,null,null,null,"Team 58"]
[null,null,null,null,null,null,null,null,null,null,null,null,null,null,null,null,null,null,null,null,null,null,null,{"$f":"IF(#REF!=\"\",\"\",BV57)","v":{"$error":"#REF!"}},{"$f":"IF(#REF!=\"\",\"\",#REF!)","v":{"$error":"#REF!"}},null,null,null,null,null,null,{"$error":"#REF!"},null,null,null,null,null,null,null,null,null,null,null,null,null,null,null,null,null,null,null,null,null,null,null,null,null,null,null,null,null,null,null,null,null,null,null,null,null,null,null,null,null,"Team 59"]
[null,null,null,null,null,null,null,null,null,null,null,null,null,null,null,null,null,null,null,null,null,null,null,{"$f":"IF(#REF!=\"\",\"\",BV58)","v":{"$error":"#REF!"}},{"$f":"IF(#REF!=\"\",\"\",#REF!)","v":{"$error":"#REF!"}},null,null,null,null,null,null,{"$error":"#REF!"},null,null,null,null,null,null,null,null,null,null,null,null,null,null,null,null,null,null,null,null,null,null,null,null,null,null,null,null,null,null,null,null,null,null,null,null,null,null,null,null,null,"Team 60"]
[null,null,null,null,null,null,null,null,null,null,null,null,null,null,null,null,null,null,null,null,null,null,null,{"$f":"IF(#REF!=\"\",\"\",BV59)","v":{"$error":"#REF!"}},{"$f":"IF(#REF!=\"\",\"\",#REF!)","v":{"$error":"#REF!"}},null,null,null,null,null,null,{"$error":"#REF!"},null,null,null,null,null,null,null,null,null,null,null,null,null,null,null,null,null,null,null,null,null,null,null,null,null,null,null,null,null,null,null,null,null,null,null,null,null,null,null,null,null,"Team 61"]
[null,null,null,null,null,null,null,null,null,null,null,null,null,null,null,null,null,null,null,null,null,null,null,{"$f":"IF(#REF!=\"\",\"\",BV60)","v":{"$error":"#REF!"}},{"$f":"IF(#REF!=\"\",\"\",#REF!)","v":{"$error":"#REF!"}},null,null,null,null,null,null,{"$error":"#REF!"},null,null,null,null,null,null,null,null,null,null,null,null,null,null,null,null,null,null,null,null,null,null,null,null,null,null,null,null,null,null,null,null,null,null,null,null,null,null,null,null,null,"Team 62"]
[null,null,null,null,null,null,null,null,null,null,null,null,null,null,null,null,null,null,null,null,null,null,null,{"$f":"IF(#REF!=\"\",\"\",BV61)","v":{"$error":"#REF!"}},{"$f":"IF(#REF!=\"\",\"\",#REF!)","v":{"$error":"#REF!"}},null,null,null,null,null,null,{"$error":"#REF!"},null,null,null,null,null,null,null,null,null,null,null,null,null,null,null,null,null,null,null,null,null,null,null,null,null,null,null,null,null,null,null,null,null,null,null,null,null,null,null,null,null,"Team 63"]
[null,null,null,null,null,null,null,null,null,null,null,null,null,null,null,null,null,null,null,null,null,null,null,{"$f":"IF(#REF!=\"\",\"\",BV62)","v":{"$error":"#REF!"}},{"$f":"IF(#REF!=\"\",\"\",#REF!)","v":{"$error":"#REF!"}},null,null,null,null,null,null,{"$error":"#REF!"},null,null,null,null,null,null,null,null,null,null,null,null,null,null,null,null,null,null,null,null,null,null,null,null,null,null,null,null,null,null,null,null,null,null,null,null,null,null,null,null,null,"Team 64"]
[null,null,null,null,null,null,null,null,null,null,null,null,null,null,null,null,null,null,null,null,null,null,null,{"$f":"IF(#REF!=\"\",\"\",BV63)","v":{"$error":"#REF!"}},{"$f":"IF(#REF!=\"\",\"\",#REF!)","v":{"$error":"#REF!"}},null,null,null,null,null,null,{"$error":"#REF!"},null,null,null,null,null,null,null,null,null,null,null,null,null,null,null,null,null,null,null,null,null,null,null,null,null,null,null,null,null,null,null,null,null,null,null,null,null,null,null,null,null,"Team 65"]
[null,null,null,null,null,null,null,null,null,null,null,null,null,null,null,null,null,null,null,null,null,null,null,{"$f":"IF(#REF!=\"\",\"\",BV64)","v":{"$error":"#REF!"}},{"$f":"IF(#REF!=\"\",\"\",#REF!)","v":{"$error":"#REF!"}},null,null,null,null,null,null,{"$error":"#REF!"},null,null,null,null,null,null,null,null,null,null,null,null,null,null,null,null,null,null,null,null,null,null,null,null,null,null,null,null,null,null,null,null,null,null,null,null,null,null,null,null,null,"Team 66"]
[null,null,null,null,null,null,null,null,null,null,null,null,null,null,null,null,null,null,null,null,null,null,null,{"$f":"IF(#REF!=\"\",\"\",BV65)","v":{"$error":"#REF!"}},{"$f":"IF(#REF!=\"\",\"\",#REF!)","v":{"$error":"#REF!"}},null,null,null,null,null,null,{"$error":"#REF!"},null,null,null,null,null,null,null,null,null,null,null,null,null,null,null,null,null,null,null,null,null,null,null,null,null,null,null,null,null,null,null,null,null,null,null,null,null,null,null,null,null,"Team 67"]
[null,null,null,null,null,null,null,null,null,null,null,null,null,null,null,null,null,null,null,null,null,null,null,{"$f":"IF(#REF!=\"\",\"\",BV66)","v":{"$error":"#REF!"}},{"$f":"IF(#REF!=\"\",\"\",#REF!)","v":{"$error":"#REF!"}},null,null,null,null,null,null,{"$error":"#REF!"},null,null,null,null,null,null,null,null,null,null,null,null,null,null,null,null,null,null,null,null,null,null,null,null,null,null,null,null,null,null,null,null,null,null,null,null,null,null,null,null,null,"Team 68"]
[null,null,null,null,null,null,null,null,null,null,null,null,null,null,null,null,null,null,null,null,null,null,null,{"$f":"IF(#REF!=\"\",\"\",BV67)","v":{"$error":"#REF!"}},{"$f":"IF(#REF!=\"\",\"\",#REF!)","v":{"$error":"#REF!"}},null,null,null,null,null,null,{"$error":"#REF!"},null,null,null,null,null,null,null,null,null,null,null,null,null,null,null,null,null,null,null,null,null,null,null,null,null,null,null,null,null,null,null,null,null,null,null,null,null,null,null,null,null,"Team 69"]
[null,null,null,null,null,null,null,null,null,null,null,null,null,null,null,null,null,null,null,null,null,null,null,{"$f":"IF(#REF!=\"\",\"\",BV68)","v":{"$error":"#REF!"}},{"$f":"IF(#REF!=\"\",\"\",#REF!)","v":{"$error":"#REF!"}},null,null,null,null,null,null,{"$error":"#REF!"},null,null,null,null,null,null,null,null,null,null,null,null,null,null,null,null,null,null,null,null,null,null,null,null,null,null,null,null,null,null,null,null,null,null,null,null,null,null,null,null,null,"Team 70"]
[null,null,null,null,null,null,null,null,null,null,null,null,null,null,null,null,null,null,null,null,null,null,null,{"$f":"IF(#REF!=\"\",\"\",BV69)","v":{"$error":"#REF!"}},{"$f":"IF(#REF!=\"\",\"\",#REF!)","v":{"$error":"#REF!"}},null,null,null,null,null,null,{"$error":"#REF!"},null,null,null,null,null,null,null,null,null,null,null,null,null,null,null,null,null,null,null,null,null,null,null,null,null,null,null,null,null,null,null,null,null,null,null,null,null,null,null,null,null,"Team 71"]
[null,null,null,null,null,null,null,null,null,null,null,null,null,null,null,null,null,null,null,null,null,null,null,{"$f":"IF(#REF!=\"\",\"\",BV70)","v":{"$error":"#REF!"}},{"$f":"IF(#REF!=\"\",\"\",#REF!)","v":{"$error":"#REF!"}},null,null,null,null,null,null,{"$error":"#REF!"},null,null,null,null,null,null,null,null,null,null,null,null,null,null,null,null,null,null,null,null,null,null,null,null,null,null,null,null,null,null,null,null,null,null,null,null,null,null,null,null,null,"Team 72"]
[null,null,null,null,null,null,null,null,null,null,null,null,null,null,null,null,null,null,null,null,null,null,null,{"$f":"IF(#REF!=\"\",\"\",BV71)","v":{"$error":"#REF!"}},{"$f":"IF(#REF!=\"\",\"\",#REF!)","v":{"$error":"#REF!"}},null,null,null,null,null,null,{"$error":"#REF!"},null,null,null,null,null,null,null,null,null,null,null,null,null,null,null,null,null,null,null,null,null,null,null,null,null,null,null,null,null,null,null,null,null,null,null,null,null,null,null,null,null,"Team 73"]
[null,null,null,null,null,null,null,null,null,null,null,null,null,null,null,null,null,null,null,null,null,null,null,{"$f":"IF(#REF!=\"\",\"\",BV72)","v":{"$error":"#REF!"}},{"$f":"IF(#REF!=\"\",\"\",#REF!)","v":{"$error":"#REF!"}},null,null,null,null,null,null,{"$error":"#REF!"},null,null,null,null,null,null,null,null,null,null,null,null,null,null,null,null,null,null,null,null,null,null,null,null,null,null,null,null,null,null,null,null,null,null,null,null,null,null,null,null,null,"Team 74"]
[null,null,null,null,null,null,null,null,null,null,null,null,null,null,null,null,null,null,null,null,null,null,null,{"$f":"IF(#REF!=\"\",\"\",BV73)","v":{"$error":"#REF!"}},{"$f":"IF(#REF!=\"\",\"\",#REF!)","v":{"$error":"#REF!"}},null,null,null,null,null,null,{"$error":"#REF!"},null,null,null,null,null,null,null,null,null,null,null,null,null,null,null,null,null,null,null,null,null,null,null,null,null,null,null,null,null,null,null,null,null,null,null,null,null,null,null,null,null,"Team 75"]
[null,null,null,null,null,null,null,null,null,null,null,null,null,null,null,null,null,null,null,null,null,null,null,{"$f":"IF(#REF!=\"\",\"\",BV74)","v":{"$error":"#REF!"}},{"$f":"IF(#REF!=\"\",\"\",#REF!)","v":{"$error":"#REF!"}},null,null,null,null,null,null,{"$error":"#REF!"},null,null,null,null,null,null,null,null,null,null,null,null,null,null,null,null,null,null,null,null,null,null,null,null,null,null,null,null,null,null,null,null,null,null,null,null,null,null,null,null,null,"Team 76"]
[null,null,null,null,null,null,null,null,null,null,null,null,null,null,null,null,null,null,null,null,null,null,null,{"$f":"IF(#REF!=\"\",\"\",BV75)","v":{"$error":"#REF!"}},{"$f":"IF(#REF!=\"\",\"\",#REF!)","v":{"$error":"#REF!"}},null,null,null,null,null,null,{"$error":"#REF!"},null,null,null,null,null,null,null,null,null,null,null,null,null,null,null,null,null,null,null,null,null,null,null,null,null,null,null,null,null,null,null,null,null,null,null,null,null,null,null,null,null,"Team 77"]
[null,null,null,null,null,null,null,null,null,null,null,null,null,null,null,null,null,null,null,null,null,null,null,{"$f":"IF(#REF!=\"\",\"\",BV76)","v":{"$error":"#REF!"}},{"$f":"IF(#REF!=\"\",\"\",#REF!)","v":{"$error":"#REF!"}},null,null,null,null,null,null,{"$error":"#REF!"},null,null,null,null,null,null,null,null,null,null,null,null,null,null,null,null,null,null,null,null,null,null,null,null,null,null,null,null,null,null,null,null,null,null,null,null,null,null,null,null,null,"Team 78"]
[null,null,null,null,null,null,null,null,null,null,null,null,null,null,null,null,null,null,null,null,null,null,null,{"$f":"IF(#REF!=\"\",\"\",BV77)","v":{"$error":"#REF!"}},{"$f":"IF(#REF!=\"\",\"\",#REF!)","v":{"$error":"#REF!"}},null,null,null,null,null,null,{"$error":"#REF!"},null,null,null,null,null,null,null,null,null,null,null,null,null,null,null,null,null,null,null,null,null,null,null,null,null,null,null,null,null,null,null,null,null,null,null,null,null,null,null,null,null,"Team 79"]
[null,null,null,null,null,null,null,null,null,null,null,null,null,null,null,null,null,null,null,null,null,null,null,{"$f":"IF(#REF!=\"\",\"\",BV78)","v":{"$error":"#REF!"}},{"$f":"IF(#REF!=\"\",\"\",#REF!)","v":{"$error":"#REF!"}},null,null,null,null,null,null,{"$error":"#REF!"},null,null,null,null,null,null,null,null,null,null,null,null,null,null,null,null,null,null,null,null,null,null,null,null,null,null,null,null,null,null,null,null,null,null,null,null,null,null,null,null,null,"Team 80"]
[null,null,null,null,null,null,null,null,null,null,null,null,null,null,null,null,null,null,null,null,null,null,null,{"$f":"IF(#REF!=\"\",\"\",BV79)","v":{"$error":"#REF!"}},{"$f":"IF(#REF!=\"\",\"\",#REF!)","v":{"$error":"#REF!"}},null,null,null,null,null,null,{"$error":"#REF!"},null,null,null,null,null,null,null,null,null,null,null,null,null,null,null,null,null,null,null,null,null,null,null,null,null,null,null,null,null,null,null,null,null,null,null,null,null,null,null,null,null,"Team 81"]
[null,null,null,null,null,null,null,null,null,null,null,null,null,null,null,null,null,null,null,null,null,null,null,{"$f":"IF(#REF!=\"\",\"\",BV80)","v":{"$error":"#REF!"}},{"$f":"IF(#REF!=\"\",\"\",#REF!)","v":{"$error":"#REF!"}},null,null,null,null,null,null,{"$error":"#REF!"},null,null,null,null,null,null,null,null,null,null,null,null,null,null,null,null,null,null,null,null,null,null,null,null,null,null,null,null,null,null,null,null,null,null,null,null,null,null,null,null,null,"Team 82"]
[null,null,null,null,null,null,null,null,null,null,null,null,null,null,null,null,null,null,null,null,null,null,null,{"$f":"IF(#REF!=\"\",\"\",BV81)","v":{"$error":"#REF!"}},{"$f":"IF(#REF!=\"\",\"\",#REF!)","v":{"$error":"#REF!"}},null,null,null,null,null,null,{"$error":"#REF!"},null,null,null,null,null,null,null,null,null,null,null,null,null,null,null,null,null,null,null,null,null,null,null,null,null,null,null,null,null,null,null,null,null,null,null,null,null,null,null,null,null,"Team 83"]
[null,null,null,null,null,null,null,null,null,null,null,null,null,null,null,null,null,null,null,null,null,null,null,{"$f":"IF(#REF!=\"\",\"\",BV82)","v":{"$error":"#REF!"}},{"$f":"IF(#REF!=\"\",\"\",#REF!)","v":{"$error":"#REF!"}},null,null,null,null,null,null,{"$error":"#REF!"},null,null,null,null,null,null,null,null,null,null,null,null,null,null,null,null,null,null,null,null,null,null,null,null,null,null,null,null,null,null,null,null,null,null,null,null,null,null,null,null,null,"Team 84"]
[null,null,null,null,null,null,null,null,null,null,null,null,null,null,null,null,null,null,null,null,null,null,null,{"$f":"IF(#REF!=\"\",\"\",BV83)","v":{"$error":"#REF!"}},{"$f":"IF(#REF!=\"\",\"\",#REF!)","v":{"$error":"#REF!"}},null,null,null,null,null,null,{"$error":"#REF!"},null,null,null,null,null,null,null,null,null,null,null,null,null,null,null,null,null,null,null,null,null,null,null,null,null,null,null,null,null,null,null,null,null,null,null,null,null,null,null,null,null,"Team 85"]
[null,null,null,null,null,null,null,null,null,null,null,null,null,null,null,null,null,null,null,null,null,null,null,{"$f":"IF(#REF!=\"\",\"\",BV84)","v":{"$error":"#REF!"}},{"$f":"IF(#REF!=\"\",\"\",#REF!)","v":{"$error":"#REF!"}},null,null,null,null,null,null,{"$error":"#REF!"},null,null,null,null,null,null,null,null,null,null,null,null,null,null,null,null,null,null,null,null,null,null,null,null,null,null,null,null,null,null,null,null,null,null,null,null,null,null,null,null,null,"Team 86"]
[null,null,null,null,null,null,null,null,null,null,null,null,null,null,null,null,null,null,null,null,null,null,null,{"$f":"IF(#REF!=\"\",\"\",BV85)","v":{"$error":"#REF!"}},{"$f":"IF(#REF!=\"\",\"\",#REF!)","v":{"$error":"#REF!"}},null,null,null,null,null,null,{"$error":"#REF!"},null,null,null,null,null,null,null,null,null,null,null,null,null,null,null,null,null,null,null,null,null,null,null,null,null,null,null,null,null,null,null,null,null,null,null,null,null,null,null,null,null,"Team 87"]
[null,null,null,null,null,null,null,null,null,null,null,null,null,null,null,null,null,null,null,null,null,null,null,{"$f":"IF(#REF!=\"\",\"\",BV86)","v":{"$error":"#REF!"}},{"$f":"IF(#REF!=\"\",\"\",#REF!)","v":{"$error":"#REF!"}},null,null,null,null,null,null,{"$error":"#REF!"},null,null,null,null,null,null,null,null,null,null,null,null,null,null,null,null,null,null,null,null,null,null,null,null,null,null,null,null,null,null,null,null,null,null,null,null,null,null,null,null,null,"Team 88"]
[null,null,null,null,null,null,null,null,null,null,null,null,null,null,null,null,null,null,null,null,null,null,null,{"$f":"IF(#REF!=\"\",\"\",BV87)","v":{"$error":"#REF!"}},{"$f":"IF(#REF!=\"\",\"\",#REF!)","v":{"$error":"#REF!"}},null,null,null,null,null,null,{"$error":"#REF!"},null,null,null,null,null,null,null,null,null,null,null,null,null,null,null,null,null,null,null,null,null,null,null,null,null,null,null,null,null,null,null,null,null,null,null,null,null,null,null,null,null,"Team 89"]
[null,null,null,null,null,null,null,null,null,null,null,null,null,null,null,null,null,null,null,null,null,null,null,{"$f":"IF(#REF!=\"\",\"\",BV88)","v":{"$error":"#REF!"}},{"$f":"IF(#REF!=\"\",\"\",#REF!)","v":{"$error":"#REF!"}},null,null,null,null,null,null,{"$error":"#REF!"},null,null,null,null,null,null,null,null,null,null,null,null,null,null,null,null,null,null,null,null,null,null,null,null,null,null,null,null,null,null,null,null,null,null,null,null,null,null,null,null,null,"Team 90"]
[null,null,null,null,null,null,null,null,null,null,null,null,null,null,null,null,null,null,null,null,null,null,null,{"$f":"IF(#REF!=\"\",\"\",BV89)","v":{"$error":"#REF!"}},{"$f":"IF(#REF!=\"\",\"\",#REF!)","v":{"$error":"#REF!"}},null,null,null,null,null,null,{"$error":"#REF!"},null,null,null,null,null,null,null,null,null,null,null,null,null,null,null,null,null,null,null,null,null,null,null,null,null,null,null,null,null,null,null,null,null,null,null,null,null,null,null,null,null,"Team 91"]
[null,null,null,null,null,null,null,null,null,null,null,null,null,null,null,null,null,null,null,null,null,null,null,{"$f":"IF(#REF!=\"\",\"\",BV90)","v":{"$error":"#REF!"}},{"$f":"IF(#REF!=\"\",\"\",#REF!)","v":{"$error":"#REF!"}},null,null,null,null,null,null,{"$error":"#REF!"},null,null,null,null,null,null,null,null,null,null,null,null,null,null,null,null,null,null,null,null,null,null,null,null,null,null,null,null,null,null,null,null,null,null,null,null,null,null,null,null,null,"Team 92"]
[null,null,null,null,null,null,null,null,null,null,null,null,null,null,null,null,null,null,null,null,null,null,null,{"$f":"IF(#REF!=\"\",\"\",BV91)","v":{"$error":"#REF!"}},{"$f":"IF(#REF!=\"\",\"\",#REF!)","v":{"$error":"#REF!"}},null,null,null,null,null,null,{"$error":"#REF!"},null,null,null,null,null,null,null,null,null,null,null,null,null,null,null,null,null,null,null,null,null,null,null,null,null,null,null,null,null,null,null,null,null,null,null,null,null,null,null,null,null,"Team 93"]
[null,null,null,null,null,null,null,null,null,null,null,null,null,null,null,null,null,null,null,null,null,null,null,{"$f":"IF(#REF!=\"\",\"\",BV92)","v":{"$error":"#REF!"}},{"$f":"IF(#REF!=\"\",\"\",#REF!)","v":{"$error":"#REF!"}},null,null,null,null,null,null,{"$error":"#REF!"},null,null,null,null,null,null,null,null,null,null,null,null,null,null,null,null,null,null,null,null,null,null,null,null,null,null,null,null,null,null,null,null,null,null,null,null,null,null,null,null,null,"Team 94"]
[null,null,null,null,null,null,null,null,null,null,null,null,null,null,null,null,null,null,null,null,null,null,null,{"$f":"IF(#REF!=\"\",\"\",BV93)","v":{"$error":"#REF!"}},{"$f":"IF(#REF!=\"\",\"\",#REF!)","v":{"$error":"#REF!"}},null,null,null,null,null,null,{"$error":"#REF!"},null,null,null,null,null,null,null,null,null,null,null,null,null,null,null,null,null,null,null,null,null,null,null,null,null,null,null,null,null,null,null,null,null,null,null,null,null,null,null,null,null,"Team 95"]
[null,null,null,null,null,null,null,null,null,null,null,null,null,null,null,null,null,null,null,null,null,null,null,{"$f":"IF(#REF!=\"\",\"\",BV94)","v":{"$error":"#REF!"}},{"$f":"IF(#REF!=\"\",\"\",#REF!)","v":{"$error":"#REF!"}},null,null,null,null,null,null,{"$error":"#REF!"},null,null,null,null,null,null,null,null,null,null,null,null,null,null,null,null,null,null,null,null,null,null,null,null,null,null,null,null,null,null,null,null,null,null,null,null,null,null,null,null,null,"Team 96"]
[null,null,null,null,null,null,null,null,null,null,null,null,null,null,null,null,null,null,null,null,null,null,null,{"$f":"IF(#REF!=\"\",\"\",BV95)","v":{"$error":"#REF!"}},{"$f":"IF(#REF!=\"\",\"\",#REF!)","v":{"$error":"#REF!"}},null,null,null,null,null,null,{"$error":"#REF!"},null,null,null,null,null,null,null,null,null,null,null,null,null,null,null,null,null,null,null,null,null,null,null,null,null,null,null,null,null,null,null,null,null,null,null,null,null,null,null,null,null,"Team 97"]
[null,null,null,null,null,null,null,null,null,null,null,null,null,null,null,null,null,null,null,null,null,null,null,{"$f":"IF(#REF!=\"\",\"\",BV96)","v":{"$error":"#REF!"}},{"$f":"IF(#REF!=\"\",\"\",#REF!)","v":{"$error":"#REF!"}},null,null,null,null,null,null,{"$error":"#REF!"},null,null,null,null,null,null,null,null,null,null,null,null,null,null,null,null,null,null,null,null,null,null,null,null,null,null,null,null,null,null,null,null,null,null,null,null,null,null,null,null,null,"Team 98"]
[null,null,null,null,null,null,null,null,null,null,null,null,null,null,null,null,null,null,null,null,null,null,null,{"$f":"IF(#REF!=\"\",\"\",BV97)","v":{"$error":"#REF!"}},{"$f":"IF(#REF!=\"\",\"\",#REF!)","v":{"$error":"#REF!"}},null,null,null,null,null,null,{"$error":"#REF!"},null,null,null,null,null,null,null,null,null,null,null,null,null,null,null,null,null,null,null,null,null,null,null,null,null,null,null,null,null,null,null,null,null,null,null,null,null,null,null,null,null,"Team 99"]
[null,null,null,null,null,null,null,null,null,null,null,null,null,null,null,null,null,null,null,null,null,null,null,{"$f":"IF(#REF!=\"\",\"\",BV98)","v":{"$error":"#REF!"}},{"$f":"IF(#REF!=\"\",\"\",#REF!)","v":{"$error":"#REF!"}},null,null,null,null,null,null,{"$error":"#REF!"},null,null,null,null,null,null,null,null,null,null,null,null,null,null,null,null,null,null,null,null,null,null,null,null,null,null,null,null,null,null,null,null,null,null,null,null,null,null,null,null,null,"Team 100"]
[null,null,null,null,null,null,null,null,null,null,null,null,null,null,null,null,null,null,null,null,null,null,null,{"$f":"IF(#REF!=\"\",\"\",BV98)","v":{"$error":"#REF!"}},{"$f":"IF(#REF!=\"\",\"\",#REF!)","v":{"$error":"#REF!"}},null,null,null,null,null,null,null,null,null,null,null,null,null,null,null,null,null,null,null,null,null,null,null,null,null,null,null,null,null,null,null,null,null,null,null,null,null,null,null,null,null,null,null,null,null,null,null,null,"Team 101"]